bitfinex-derivatives/quotes_BTCF0:USTF0_20220102
["timestamp","ask_amount","ask_price","bid_price","bid_amount"]
[1641121585558,0.00547952,47238.0,47236.0,0.186]
[1641121586861,0.00547952,47238.0,47234.0,0.14033567]
[1641121587059,0.07303952,47238.0,47234.0,0.14033567]
[1641121587359,0.00547952,47237.0,47235.0,0.01202894]
[1641121589469,0.00547952,47237.0,47235.0,0.20002894]
[1641121590069,0.00547952,47241.0,47236.0,0.01202894]
[1641121590272,0.00547952,47241.0,47240.0,0.14033567]
[1641121590470,0.35899475,47242.0,47240.0,0.14033567]
[1641121591467,0.35899475,47242.0,47240.0,0.32633567]
[1641121591667,0.83642427,47245.0,47240.0,0.32633567]
[1641121591869,0.83642427,47241.0,47240.0,0.32633567]
[1641121592568,0.83642427,47241.0,47240.0,0.34750086]
[1641121592969,0.83642427,47241.0,47240.0,0.16150086]
[1641121593571,0.83642427,47241.0,47240.0,0.34850086]
[1641121593871,1.01642427,47242.0,47240.0,0.34850086]
[1641121594771,1.01642427,47242.0,47240.0,0.16150086]
[1641121594971,0.18,47242.0,47240.0,0.16150086]
[1641121595275,0.12467258,47241.0,47240.0,0.16150086]
[1641121595571,0.12467258,47241.0,47240.0,0.34650086]
[1641121595771,0.96259844,47241.0,47240.0,0.34650086]
[1641121596872,0.96259844,47241.0,47240.0,0.16150086]
[1641121597472,0.59870842,47241.0,47240.0,0.34850086]
[1641121598073,0.83792586,47242.0,47240.0,0.34850086]
[1641121598776,0.83792586,47241.0,47240.0,0.34850086]
[1641121598975,0.83792586,47241.0,47240.0,0.16150086]
[1641121599474,0.83792586,47241.0,47240.0,0.34950086]
[1641121600076,0.59869925,47241.0,47240.0,0.34950086]
[1641121600876,0.59869925,47241.0,47240.0,0.16150086]
[1641121601476,0.59869925,47241.0,47240.0,0.34850086]
[1641121602879,0.59869925,47241.0,47240.0,0.16150086]
[1641121603479,0.59869925,47241.0,47240.0,0.34950086]
[1641121603980,0.59869925,47241.0,47240.0,0.43211086]
[1641121604380,0.59869925,47241.0,47240.0,0.44413884]
[1641121604783,0.59869925,47241.0,47240.0,0.25613884]
[1641121605180,0.95797602,47241.0,47240.0,0.25613884]
[1641121605381,0.35927677,47241.0,47240.0,0.25613884]
[1641121605580,0.35927677,47241.0,47240.0,0.44513884]
[1641121605781,0.36474677,47241.0,47240.0,0.44513884]
[1641121606884,0.36474677,47241.0,47240.0,0.25613884]
[1641121607084,0.36474677,47241.0,47240.0,0.17352884]
[1641121607585,0.00547,47241.0,47240.0,0.36352884]
[1641121608185,0.00547,47241.0,47240.0,0.43687884]
[1641121608786,0.00547,47241.0,47240.0,0.24687884]
[1641121609385,0.00547,47241.0,47240.0,1.35487884]
[1641121609586,0.00547,47241.0,47240.0,1.85963484]
[1641121609986,0.35927677,47244.0,47243.0,0.41786948]
[1641121610187,0.35927677,47244.0,47242.0,1.108]
[1641121610386,0.35927677,47244.0,47243.0,0.316634]
[1641121610587,0.35927677,47244.0,47242.0,1.290855]
[1641121610991,0.35927677,47244.0,47242.0,0.002855]
[1641121611188,0.35927677,47244.0,47243.0,0.10356571]
[1641121611489,0.35927677,47246.0,47243.0,0.10356571]
[1641121611688,0.35927677,47246.0,47243.0,0.01202706]
[1641121611888,0.35927677,47246.0,47244.0,0.01202706]
[1641121612397,0.35927677,47246.0,47243.0,0.01202706]
[1641121613200,0.35927677,47246.0,47242.0,0.01202706]
[1641121613603,0.35927677,47246.0,47243.0,0.188]
[1641121614202,0.37927677,47247.0,47244.0,0.01202706]
[1641121614602,0.37927677,47247.0,47246.0,0.14033567]
[1641121615404,0.85792586,47247.0,47246.0,0.14033567]
[1641121615603,0.85792586,47247.0,47246.0,0.32833567]
[1641121617005,0.85792586,47247.0,47246.0,0.14033567]
[1641121617604,0.85792586,47247.0,47246.0,0.32733567]
[1641121618608,0.85792586,47247.0,47246.0,0.33936266]
[1641121618904,0.02,47247.0,47246.0,0.15236266]
[1641121619505,0.02,47247.0,47246.0,0.33936266]
[1641121621015,0.02,47247.0,47246.0,0.14033567]
[1641121621618,0.02,47247.0,47246.0,0.32733567]
[1641121621918,0.02,47247.0,47246.0,0.3393627]
[1641121622924,0.02,47247.0,47246.0,0.14033567]
[1641121623520,0.02,47247.0,47246.0,0.32833567]
[1641121623722,0.02,47247.0,47246.0,0.34036262]
[1641121625020,0.02,47247.0,47246.0,0.15236262]
[1641121625422,0.02,47247.0,47246.0,0.14033567]
[1641121625620,0.02,47247.0,47246.0,0.32833567]
[1641121626323,0.02473111,47247.0,47246.0,0.32833567]
[1641121627422,0.02473111,47247.0,47246.0,0.14033567]
[1641121627621,0.02473111,47247.0,47246.0,0.32933567]
[1641121628825,0.02473111,47247.0,47246.0,0.14033567]
[1641121629623,0.02473111,47247.0,47246.0,0.32933567]
[1641121630022,0.02473111,47247.0,47246.0,0.34136261]
[1641121630624,0.15203487,47247.0,47246.0,0.32933567]
[1641121631524,0.15203487,47247.0,47246.0,0.51833567]
[1641121632323,0.23111487,47247.0,47246.0,0.51833567]
[1641121632526,0.41111487,47247.0,47246.0,0.51833567]
[1641121632926,0.41111487,47247.0,47246.0,0.14033567]
[1641121633327,0.41111487,47247.0,47235.0,0.28591478]
[1641121633527,0.18,47236.0,47235.0,0.28591478]
[1641121633728,0.26503,47236.0,47235.0,0.28591478]
[1641121633929,0.26976111,47236.0,47235.0,0.41823675]
[1641121634126,0.26976111,47236.0,47235.0,0.29794405]
[1641121634327,0.26976111,47236.0,47235.0,0.03319693]
[1641121634827,0.08976111,47236.0,47235.0,0.03319693]
[1641121635028,0.00473111,47236.0,47235.0,0.03319508]
[1641121635328,0.13203487,47236.0,47235.0,0.03319508]
[1641121635527,0.12730376,47236.0,47235.0,0.34547811]
[1641121636128,0.00473111,47236.0,47235.0,0.34547811]
[1641121637031,0.00473111,47236.0,47235.0,0.15347811]
[1641121637629,0.00473111,47236.0,47235.0,0.34847811]
[1641121637830,0.36487809,47236.0,47235.0,0.34847811]
[1641121638230,0.00473111,47236.0,47235.0,0.34847811]
[1641121638630,0.00473111,47236.0,47235.0,0.3273123]
[1641121639035,0.00473111,47236.0,47235.0,0.1323123]
[1641121639531,0.00473111,47236.0,47235.0,0.3273123]
[1641121639735,0.97244355,47236.0,47235.0,0.3273123]
[1641121639938,0.96771244,47236.0,47235.0,0.3273123]
[1641121640231,0.60488484,47236.0,47235.0,0.34847698]
[1641121640930,0.60488484,47236.0,47235.0,0.15347698]
[1641121641330,0.60488484,47236.0,47235.0,0.1323123]
[1641121641534,0.00473111,47236.0,47235.0,0.15347547]
[1641121641731,0.60015373,47237.0,47235.0,0.34547547]
[1641121642131,0.60015373,47237.0,47236.0,0.46901186]
[1641121642332,0.49416241,47237.0,47236.0,1.57701186]
[1641121642533,0.49416241,47237.0,47236.0,1.75701186]
[1641121642732,0.49416241,47237.0,47236.0,0.15347386]
[1641121642935,0.49416241,47238.0,47236.0,0.15347386]
[1641121643233,0.00473162,47237.0,47236.0,0.15347386]
[1641121643432,0.49416241,47238.0,47237.0,0.1323123]
[1641121643636,0.84062488,47239.0,47237.0,0.12028303]
[1641121643834,0.84062488,47242.0,47237.0,0.01202927]
[1641121644036,0.84062488,47242.0,47238.0,0.12028303]
[1641121644434,0.84062488,47242.0,47239.0,0.01202927]
[1641121644843,0.84062488,47242.0,47240.0,0.12028303]
[1641121645037,0.84062488,47242.0,47240.0,0.2606187]
[1641121645438,0.84062488,47242.0,47241.0,0.01202927]
[1641121645636,0.84062488,47242.0,47241.0,0.1323123]
[1641121646339,0.84062488,47243.0,47241.0,0.1323123]
[1641121646740,0.84062488,47243.0,47242.0,0.12028303]
[1641121646937,0.84062488,47243.0,47242.0,0.01202927]
[1641121647337,0.84062488,47243.0,47241.0,0.01202927]
[1641121647745,0.84062488,47243.0,47242.0,0.187]
[1641121648145,0.84062488,47243.0,47242.0,0.19902927]
[1641121648945,0.18,47245.0,47240.0,0.14033567]
[1641121649249,0.13508837,47244.0,47240.0,0.14033567]
[1641121649646,0.13508837,47244.0,47240.0,0.32433567]
[1641121650046,0.84023455,47241.0,47240.0,0.32433567]
[1641121650546,0.13508837,47244.0,47240.0,0.32433567]
[1641121650746,0.13508837,47243.0,47240.0,0.32433567]
[1641121650946,0.13508837,47243.0,47240.0,0.14033567]
[1641121651646,0.13508837,47242.0,47240.0,0.32633567]
[1641121652448,0.13508837,47241.0,47240.0,0.32633567]
[1641121653549,0.13508837,47241.0,47240.0,0.14033567]
[1641121653754,0.13508837,47241.0,47240.0,0.32833567]
[1641121654956,0.13508837,47241.0,47240.0,0.14033567]
[1641121655357,0.13508837,47241.0,47240.0,0.15236363]
[1641121655758,0.13508837,47241.0,47240.0,0.34736363]
[1641121656060,0.13508837,47241.0,47240.0,0.46764389]
[1641121656864,0.13508837,47241.0,47240.0,0.27264389]
[1641121657660,0.13508837,47241.0,47240.0,0.34136363]
[1641121657862,0.20311837,47241.0,47240.0,0.34136363]
[1641121658062,0.20311837,47241.0,47240.0,0.32933567]
[1641121658261,0.20311837,47241.0,47240.0,0.34136389]
[1641121658460,0.20311837,47241.0,47240.0,0.32933567]
[1641121658660,0.20785569,47241.0,47240.0,0.32933567]
[1641121658860,0.20785569,47241.0,47240.0,0.34136401]
[1641121659063,0.20785569,47241.0,47240.0,0.15236401]
[1641121659262,0.20785569,47241.0,47240.0,0.27264549]
[1641121659665,0.20785569,47241.0,47240.0,0.46164549]
[1641121659864,0.20785569,47241.0,47240.0,0.34136401]
[1641121660964,0.20785569,47241.0,47240.0,0.32933567]
[1641121661366,0.20785569,47241.0,47240.0,0.34136386]
[1641121661565,0.13982569,47241.0,47240.0,0.46164404]
[1641121661967,0.13982569,47241.0,47240.0,0.34136386]
[1641121662267,0.13982569,47241.0,47240.0,0.32933567]
[1641121662465,0.97981286,47241.0,47240.0,0.32933567]
[1641121662967,0.13982569,47241.0,47240.0,0.15236389]
[1641121663767,0.97978912,47241.0,47240.0,0.34136389]
[1641121664970,0.97978912,47241.0,47240.0,0.15236389]
[1641121665666,0.97978912,47241.0,47240.0,0.34136389]
[1641121665866,0.97978912,47241.0,47240.0,0.4616441]
[1641121667069,0.13982569,47241.0,47240.0,0.2726441]
[1641121667668,0.13982569,47241.0,47240.0,0.4616441]
[1641121669573,0.13982569,47241.0,47240.0,0.2726441]
[1641121669770,0.97978912,47241.0,47240.0,0.4616441]
[1641121670870,0.84470075,47241.0,47240.0,0.4616441]
[1641121671071,0.6048856,47241.0,47240.0,0.2726441]
[1641121671770,0.6048856,47241.0,47240.0,0.4626441]
[1641121672971,0.6048856,47241.0,47240.0,0.2726441]
[1641121673773,0.6048856,47241.0,47240.0,0.4626441]
[1641121674974,0.13858248,47241.0,47240.0,0.2726441]
[1641121675776,0.13858248,47241.0,47240.0,0.4626441]
[1641121676776,0.97854591,47241.0,47240.0,0.4626441]
[1641121677075,0.97854591,47241.0,47240.0,0.2726441]
[1641121677779,0.97854591,47241.0,47240.0,0.4616441]
[1641121678980,0.13858248,47241.0,47240.0,0.4616441]
[1641121679181,0.13858248,47241.0,47240.0,0.2726441]
[1641121679679,0.13858248,47241.0,47240.0,0.4616441]
[1641121680484,0.97854591,47241.0,47240.0,0.4616441]
[1641121681183,0.97854591,47241.0,47240.0,0.2726441]
[1641121681785,0.97854591,47241.0,47240.0,0.4616441]
[1641121682989,0.97854591,47241.0,47240.0,0.2726441]
[1641121683791,0.97854591,47241.0,47240.0,0.4626441]
[1641121685101,0.97854591,47241.0,47240.0,0.2726441]
[1641121685803,0.97854591,47241.0,47240.0,0.4616441]
[1641121686004,0.13858248,47241.0,47240.0,0.4616441]
[1641121687205,0.13858248,47241.0,47240.0,0.2726441]
[1641121687616,0.97889818,47241.0,47240.0,0.2726441]
[1641121687816,0.97889818,47241.0,47240.0,0.4626441]
[1641121688320,0.13858248,47241.0,47240.0,0.4626441]
[1641121689122,0.13858248,47241.0,47240.0,0.2726441]
[1641121689620,0.13858248,47241.0,47240.0,0.26061588]
[1641121689820,0.13858248,47241.0,47240.0,0.44761588]
[1641121690221,0.13858248,47241.0,47240.0,0.32733567]
[1641121691023,0.13858248,47241.0,47240.0,0.26061849]
[1641121691226,0.13858248,47241.0,47240.0,0.14033567]
[1641121691826,0.13858248,47241.0,47240.0,0.44561895]
[1641121692425,0.13858248,47241.0,47240.0,0.45764718]
[1641121692827,0.13858248,47241.0,47240.0,0.44561895]
[1641121693028,0.13858248,47241.0,47240.0,0.26061895]
[1641121693228,0.19999248,47241.0,47240.0,0.26061895]
[1641121693728,0.19999248,47241.0,47240.0,0.44561895]
[1641121693929,0.19999248,47241.0,47240.0,0.45764719]
[1641121694831,0.13858248,47241.0,47240.0,0.45764719]
[1641121695030,0.13858248,47241.0,47240.0,0.27264719]
[1641121695830,0.13858248,47241.0,47240.0,0.45864719]
[1641121697233,0.13858248,47241.0,47240.0,0.27264719]
[1641121697732,0.13858248,47241.0,47240.0,0.45864719]
[1641121699135,0.13858248,47241.0,47240.0,0.27264719]
[1641121699734,0.13858248,47241.0,47240.0,0.45864719]
[1641121701037,1.3203382,47246.0,47240.0,1.85958139]
[1641121701237,1.3203382,47246.0,47245.0,0.32033567]
[1641121701439,1.3203382,47246.0,47245.0,0.33012967]
[1641121701638,0.86175662,47247.0,47245.0,0.33012967]
[1641121701836,0.86175662,47247.0,47246.0,0.05890697]
[1641121702137,0.86584787,47247.0,47246.0,0.07093276]
[1641121702339,0.86584787,47247.0,47246.0,0.19121604]
[1641121703037,0.02409125,47247.0,47246.0,0.19121604]
[1641121703839,0.02409125,47247.0,47246.0,0.38421604]
[1641121705240,0.02409125,47247.0,47246.0,0.19121604]
[1641121705840,0.02409125,47247.0,47246.0,0.38621604]
[1641121707142,0.02409125,47247.0,47246.0,0.19121604]
[1641121707943,0.02409125,47247.0,47246.0,0.38321604]
[1641121709246,0.02409125,47247.0,47246.0,0.19121604]
[1641121709745,0.02409125,47247.0,47246.0,0.38221604]
[1641121711350,0.02409125,47247.0,47246.0,0.19121604]
[1641121711750,0.02409125,47247.0,47246.0,0.38221604]
[1641121712071,0.02409125,47247.0,47246.0,0.32430907]
[1641121712750,0.02409125,47247.0,47246.0,0.64131207]
[1641121712949,0.02409125,47247.0,47246.0,0.66246907]
[1641121713150,0.44256454,47248.0,47246.0,0.47146907]
[1641121713350,1.3203382,47254.0,47246.0,2.90119987]
[1641121713550,1.3203382,47254.0,47251.0,1.288]
[1641121713749,1.52335201,47265.0,47253.0,2.43705398]
[1641121713951,1.52335201,47265.0,47258.0,0.001]
[1641121714253,1.52335201,47265.0,47263.0,0.001]
[1641121714453,3.9518,47274.0,47264.0,1.13015147]
[1641121714454,0.19635201,47269.0,47264.0,1.13015147]
[1641121714651,0.19635201,47269.0,47264.0,1.13163047]
[1641121714854,0.19635201,47269.0,47265.0,0.009794]
[1641121715054,0.19635201,47269.0,47265.0,0.02181624]
[1641121715255,0.19635201,47269.0,47266.0,0.497296]
[1641121715454,0.19635201,47269.0,47268.0,0.02114941]
[1641121715755,0.32033567,47276.0,47268.0,0.02114941]
[1641121715957,0.32033567,47276.0,47268.0,0.03317165]
[1641121716156,0.32033567,47276.0,47269.0,0.01202224]
[1641121716358,0.14033567,47276.0,47269.0,0.01202224]
[1641121716559,0.18,47272.0,47269.0,0.01202224]
[1641121716762,0.18,47272.0,47268.0,0.02114941]
[1641121716959,0.2851813,47275.0,47271.0,0.59840092]
[1641121717159,0.18,47272.0,47271.0,0.59840092]
[1641121717360,0.23947,47272.0,47271.0,0.59840092]
[1641121717859,0.23947,47272.0,47271.0,0.76540092]
[1641121718260,0.3446513,47272.0,47271.0,0.167]
[1641121719161,0.1646513,47272.0,47269.0,0.02115238]
[1641121719363,0.1051813,47272.0,47269.0,0.02115238]
[1641121719560,1.72796648,47272.0,47271.0,0.02115099]
[1641121720362,0.1051813,47272.0,47271.0,0.02115099]
[1641121721470,0.14033567,47274.0,47271.0,0.02115099]
[1641121722074,0.14033567,47274.0,47271.0,0.20715099]
[1641121722468,0.18,47272.0,47271.0,0.20715099]
[1641121722673,0.24162,47272.0,47271.0,0.186]
[1641121723269,0.24162,47272.0,47259.0,0.14033567]
[1641121723469,0.18,47260.0,47259.0,0.14033567]
[1641121723670,0.27025,47260.0,47259.0,0.14033567]
[1641121724271,0.09025,47260.0,47259.0,0.14033567]
[1641121724575,0.09025,47260.0,47259.0,0.16149232]
[1641121725876,0.124,47260.0,47259.0,0.26749232]
[1641121727374,0.14033567,47267.0,47259.0,0.16149232]
[1641121727676,0.14033567,47267.0,47266.0,0.02115202]
[1641121727877,0.33333567,47267.0,47266.0,0.02115202]
[1641121728477,0.193,47267.0,47266.0,0.02115202]
[1641121728675,0.193,47267.0,47266.0,0.021151]
[1641121729277,0.18,47271.0,47266.0,0.16148667]
[1641121729481,0.14033567,47274.0,47266.0,0.16148667]
[1641121729677,0.14033567,47274.0,47273.0,0.0211499]
[1641121730177,0.14033567,47274.0,47266.0,0.14033567]
[1641121730178,0.32033567,47274.0,47270.0,0.02115178]
[1641121730380,0.14033567,47274.0,47270.0,0.02115178]
[1641121731678,0.18,47272.0,47270.0,0.02115178]
[1641121733982,0.367,47272.0,47270.0,0.02115178]
[1641121734785,0.187,47272.0,47270.0,0.02115178]
[1641121735184,0.14033567,47274.0,47270.0,0.02115178]
[1641121735383,0.18,47271.0,47270.0,0.02115178]
[1641121735983,0.367,47271.0,47259.0,0.21267567]
[1641121736183,0.187,47271.0,47267.0,0.02115323]
[1641121737286,0.14033567,47274.0,47259.0,0.39267567]
[1641121737485,0.14033567,47274.0,47267.0,0.02115323]
[1641121737684,0.18,47268.0,47267.0,0.02115323]
[1641121738285,0.32333567,47274.0,47267.0,0.02115323]
[1641121738485,0.18,47268.0,47267.0,0.02115323]
[1641121738686,0.32333567,47274.0,47267.0,0.02115323]
[1641121739187,0.14033567,47274.0,47267.0,0.03317474]
[1641121739386,0.18,47272.0,47267.0,0.02115323]
[1641121739589,0.14033567,47274.0,47267.0,0.02115323]
[1641121739590,0.18,47268.0,47267.0,0.02115323]
[1641121739791,0.18,47272.0,47267.0,0.02115323]
[1641121739988,0.371,47272.0,47267.0,0.02115323]
[1641121740603,0.191,47272.0,47267.0,0.02115323]
[1641121741192,0.18,47275.0,47267.0,0.02115323]
[1641121741390,0.49994505,47277.0,47267.0,0.02115323]
[1641121741991,0.32633567,47277.0,47267.0,0.02115323]
[1641121742394,0.18,47276.0,47267.0,0.02115323]
[1641121742790,0.18,47271.0,47267.0,0.02115323]
[1641121743591,0.18,47276.0,47267.0,0.02115323]
[1641121743791,0.18,47271.0,47267.0,0.02115323]
[1641121743993,0.192,47271.0,47267.0,0.02115323]
[1641121745293,0.18,47273.0,47267.0,0.02115323]
[1641121745994,0.372,47273.0,47267.0,0.02115323]
[1641121746194,1.31856773,47271.0,47270.0,0.59689116]
[1641121747096,1.31856773,47271.0,47269.0,0.83564763]
[1641121747699,0.18,47270.0,47269.0,0.83564763]
[1641121748097,1.50756773,47271.0,47269.0,0.83564763]
[1641121748597,0.189,47271.0,47269.0,0.83564763]
[1641121748805,0.1025184,47270.0,47267.0,0.83564763]
[1641121749007,0.18,47269.0,47267.0,0.83564763]
[1641121749207,1.50259575,47269.0,47267.0,0.83564763]
[1641121749614,1.32259575,47269.0,47267.0,0.83564763]
[1641121749909,1.51159575,47269.0,47267.0,0.83564763]
[1641121750311,1.42511415,47268.0,47266.0,0.85680139]
[1641121751409,0.1025184,47268.0,47267.0,0.83564763]
[1641121751909,0.2935184,47268.0,47267.0,0.83564763]
[1641121752210,0.191,47268.0,47267.0,0.83564763]
[1641121752811,0.2935184,47268.0,47267.0,0.83564763]
[1641121753312,0.1025184,47268.0,47267.0,0.83564763]
[1641121753913,0.191,47268.0,47267.0,0.83564763]
[1641121754716,0.2935184,47268.0,47266.0,0.85680139]
[1641121755224,0.1025184,47268.0,47266.0,0.85680139]
[1641121755822,0.1025184,47267.0,47266.0,0.85680139]
[1641121756223,0.2825184,47267.0,47266.0,0.85680139]
[1641121756424,0.18,47267.0,47266.0,0.85680139]
[1641121756626,0.192,47268.0,47266.0,0.85680139]
[1641121757126,0.1025184,47267.0,47266.0,0.85680139]
[1641121757628,0.2825184,47267.0,47266.0,0.85680139]
[1641121758027,0.4755184,47267.0,47266.0,0.85680139]
[1641121759230,0.1025184,47267.0,47266.0,0.85680139]
[1641121760031,0.4745184,47267.0,47266.0,0.85680139]
[1641121760231,0.2945184,47267.0,47266.0,0.85680139]
[1641121760533,0.2945184,47267.0,47266.0,0.86882357]
[1641121760932,0.2945184,47267.0,47266.0,0.03317594]
[1641121761335,0.1025184,47267.0,47266.0,0.03317594]
[1641121761934,0.2935184,47267.0,47266.0,0.03317594]
[1641121762333,0.2935184,47267.0,47266.0,0.10357594]
[1641121762533,0.191,47267.0,47266.0,0.10357594]
[1641121763433,0.1025184,47269.0,47266.0,0.10357594]
[1641121763835,0.94400802,47267.0,47266.0,0.09155376]
[1641121764033,0.94400802,47267.0,47266.0,0.24955376]
[1641121764435,0.84148962,47267.0,47266.0,0.24955376]
[1641121765235,0.84148962,47267.0,47266.0,0.09155376]
[1641121765937,1.01448962,47267.0,47266.0,0.26255245]
[1641121766536,1.11700802,47267.0,47266.0,0.26255245]
[1641121767541,0.94400802,47267.0,47266.0,0.09155245]
[1641121767939,1.11900802,47267.0,47266.0,0.26355245]
[1641121769041,1.11900802,47267.0,47266.0,0.38376331]
[1641121769242,0.1025184,47267.0,47266.0,0.21176331]
[1641121770043,0.77602329,47267.0,47266.0,0.38376331]
[1641121771847,0.60102329,47267.0,47266.0,0.21176331]
[1641121772048,0.77602329,47267.0,47266.0,0.38376331]
[1641121773452,0.60102329,47267.0,47266.0,0.21176331]
[1641121773650,0.60102329,47268.0,47266.0,0.21176331]
[1641121773849,0.60102329,47268.0,47267.0,0.12021086]
[1641121775150,0.84148962,47269.0,47267.0,0.12021086]
[1641121775749,0.84148962,47269.0,47268.0,0.83695963]
[1641121775950,1.02548962,47269.0,47268.0,0.83695963]
[1641121776451,1.02548962,47269.0,47268.0,0.95717049]
[1641121776950,1.13021575,47269.0,47268.0,0.12021086]
[1641121777249,0.94621575,47269.0,47268.0,0.12021086]
[1641121777550,0.94621575,47269.0,47267.0,0.12021086]
[1641121778051,1.14221575,47269.0,47268.0,0.12021086]
[1641121778552,1.03748962,47269.0,47268.0,0.83700405]
[1641121779151,0.196,47269.0,47268.0,0.83700405]
[1641121779451,0.10472613,47269.0,47265.0,0.59852215]
[1641121780052,0.28972613,47269.0,47266.0,0.01202182]
[1641121780854,0.28972613,47269.0,47265.0,0.59852215]
[1641121781259,0.10472613,47269.0,47267.0,0.59852215]
[1641121782056,0.46972613,47269.0,47267.0,0.59852215]
[1641121783263,0.10472613,47268.0,47267.0,0.59852215]
[1641121784066,0.28672613,47268.0,47267.0,0.59852215]
[1641121785367,0.10472613,47268.0,47267.0,0.59852215]
[1641121786069,0.28872613,47268.0,47267.0,0.59852215]
[1641121786470,0.28872613,47268.0,47266.0,0.59852215]
[1641121787873,0.10472613,47267.0,47265.0,0.59852215]
[1641121788471,0.10472613,47267.0,47266.0,0.59852215]
[1641121789375,0.10472613,47267.0,47265.0,0.59852215]
[1641121789975,1.60732188,47272.0,47266.0,0.59852215]
[1641121790177,0.186,47267.0,47266.0,0.59852215]
[1641121790576,0.186,47267.0,47266.0,0.61054375]
[1641121791376,0.10472613,47271.0,47266.0,0.63169641]
[1641121791575,0.10472613,47271.0,47266.0,0.75190771]
[1641121791778,0.10472613,47271.0,47267.0,0.0120216]
[1641121792176,0.19,47271.0,47268.0,0.59852215]
[1641121793478,0.18,47273.0,47268.0,0.59852215]
[1641121793877,0.10472613,47270.0,47269.0,0.59852215]
[1641121794479,0.10472613,47272.0,47269.0,0.59852215]
[1641121794677,0.18,47270.0,47269.0,0.59852215]
[1641121795277,0.10472613,47272.0,47269.0,0.59852215]
[1641121795478,0.10472613,47272.0,47268.0,0.59852215]
[1641121796178,1.32259575,47271.0,47267.0,0.59852215]
[1641121796981,0.10472613,47270.0,47267.0,0.59852215]
[1641121797579,0.18,47268.0,47267.0,0.59852215]
[1641121797780,0.18,47268.0,47267.0,0.83700405]
[1641121798184,0.185,47268.0,47267.0,0.83700405]
[1641121798782,0.185,47268.0,47267.0,0.84902539]
[1641121798984,0.28972613,47268.0,47267.0,0.84902539]
[1641121799189,0.28972613,47268.0,47267.0,0.13223183]
[1641121799686,0.10472613,47268.0,47267.0,0.01202134]
[1641121800085,0.28972613,47268.0,47267.0,0.04402134]
[1641121801084,0.28972613,47268.0,47267.0,0.032]
[1641121801286,0.28972613,47268.0,47267.0,0.87010747]
[1641121801584,0.10472613,47268.0,47267.0,0.83810747]
[1641121802189,0.29672613,47268.0,47267.0,0.83810747]
[1641121802786,0.47672613,47268.0,47267.0,0.83810747]
[1641121803290,0.372,47268.0,47267.0,0.83810747]
[1641121803489,0.18,47268.0,47267.0,0.83810747]
[1641121803890,1.32259575,47272.0,47267.0,0.83810747]
[1641121804089,0.189,47268.0,47267.0,0.83810747]
[1641121804290,0.29372613,47268.0,47265.0,0.83810747]
[1641121805293,0.10472613,47267.0,47266.0,0.85012887]
[1641121806192,0.29572613,47267.0,47266.0,0.85012887]
[1641121806392,0.191,47267.0,47266.0,0.0120214]
[1641121806994,0.191,47267.0,47263.0,0.0120214]
[1641121807194,0.191,47267.0,47266.0,0.13223396]
[1641121807496,0.10472613,47270.0,47266.0,0.0120214]
[1641121807897,0.10472613,47270.0,47264.0,0.0120214]
[1641121808096,0.94612597,47267.0,47262.0,1.3382906]
[1641121808397,0.94612597,47267.0,47265.0,0.12021131]
[1641121808799,0.36059735,47264.0,47263.0,0.12021131]
[1641121809697,0.36059735,47264.0,47263.0,0.14136452]
[1641121810100,0.54959735,47264.0,47263.0,0.26536452]
[1641121811199,0.54959735,47264.0,47263.0,1.58249987]
[1641121811798,0.54959735,47264.0,47263.0,0.26536452]
[1641121812200,0.55759735,47264.0,47263.0,0.14136452]
[1641121813000,0.197,47264.0,47263.0,0.14136452]
[1641121813403,0.60099558,47265.0,47263.0,0.14136452]
[1641121813703,0.60099558,47265.0,47264.0,0.12021131]
[1641121814203,0.79399558,47265.0,47264.0,0.12021131]
[1641121815605,0.60099558,47265.0,47264.0,0.12021131]
[1641121816212,0.79199558,47265.0,47264.0,0.12021131]
[1641121816605,0.191,47265.0,47264.0,0.12021131]
[1641121817709,0.29634808,47265.0,47264.0,0.12021131]
[1641121818807,0.29634808,47265.0,47264.0,0.30021131]
[1641121819008,0.29634808,47265.0,47264.0,0.12021131]
[1641121819213,1.13774792,47265.0,47264.0,0.12021131]
[1641121819609,1.03239984,47265.0,47264.0,0.12021131]
[1641121819812,0.79207503,47265.0,47264.0,0.12021131]
[1641121820009,0.60107503,47265.0,47264.0,0.12021131]
[1641121820212,0.78507503,47265.0,47264.0,0.28421131]
[1641121821210,0.28936339,47265.0,47264.0,0.28421131]
[1641121821511,0.10536339,47265.0,47264.0,0.12021131]
[1641121822111,1.14176323,47265.0,47264.0,0.12021131]
[1641121823115,0.30036339,47265.0,47264.0,0.13223247]
[1641121823415,0.10536339,47265.0,47264.0,0.13223247]
[1641121823615,0.84139984,47266.0,47264.0,0.13223247]
[1641121823820,0.60107336,47265.0,47264.0,0.13223247]
[1641121824025,0.60107336,47265.0,47263.0,1.33828856]
[1641121826223,0.79707336,47265.0,47263.0,1.33828856]
[1641121826424,0.3606404,47264.0,47263.0,1.33828856]
[1641121827024,0.79707336,47265.0,47263.0,1.33828856]
[1641121827426,0.60107336,47265.0,47263.0,1.33828856]
[1641121828127,0.60107336,47264.0,47262.0,1.31713535]
[1641121828731,1.09896984,47265.0,47262.0,1.31713535]
[1641121828930,0.84139984,47264.0,47260.0,1.33829183]
[1641121830039,0.36065981,47261.0,47260.0,0.02115648]
[1641121830241,0.36065981,47261.0,47260.0,0.10815648]
[1641121831238,0.36065981,47262.0,47260.0,0.10815648]
[1641121831640,0.36065981,47262.0,47260.0,0.02115648]
[1641121832240,0.54065981,47262.0,47260.0,0.18715648]
[1641121833540,0.36065981,47262.0,47260.0,0.02115648]
[1641121834140,0.54065981,47262.0,47260.0,0.18815648]
[1641121835543,0.36065981,47262.0,47260.0,0.02115648]
[1641121836342,0.54165981,47262.0,47260.0,0.18715648]
[1641121837441,0.54165981,47262.0,47260.0,0.02115648]
[1641121837643,0.36065981,47261.0,47259.0,1.75783664]
[1641121838444,0.54065981,47261.0,47260.0,1.43750097]
[1641121838643,0.18,47261.0,47260.0,1.43750097]
[1641121839042,0.18,47261.0,47260.0,1.56973442]
[1641121839443,0.36065981,47262.0,47260.0,1.56973442]
[1641121839645,0.36065981,47263.0,47260.0,1.59088773]
[1641121840148,0.36065981,47263.0,47261.0,0.13223345]
[1641121840348,0.52465981,47263.0,47261.0,0.13223345]
[1641121840546,0.52465981,47263.0,47262.0,0.13223345]
[1641121841550,0.36065981,47263.0,47262.0,0.13223345]
[1641121842353,0.52065981,47263.0,47262.0,0.28823345]
[1641121842954,0.16,47263.0,47262.0,0.28823345]
[1641121843455,0.60109969,47264.0,47262.0,0.13223345]
[1641121843859,0.60109969,47264.0,47263.0,0.12021226]
[1641121844056,0.60109969,47265.0,47263.0,0.13223345]
[1641121844355,0.184,47264.0,47263.0,0.13223345]
[1641121844554,0.184,47264.0,47263.0,0.12021226]
[1641121846255,0.136,47264.0,47263.0,0.24921226]
[1641121847156,0.73709969,47264.0,47263.0,0.24921226]